bitfinex/quotes_BTCUSD_20220204
["timestamp","ask_amount","ask_price","bid_price","bid_amount"]
[1643995519799,0.15169488,40311.0,40307.0,4.78851886]
[1643995520105,0.00033921,40313.0,40307.0,4.78851886]
[1643995520106,0.00033921,40313.0,40307.0,5.12599986]
[1643995520301,0.00033921,40314.0,40307.0,5.17599986]
[1643995520501,0.40071524,40313.0,40307.0,4.83851886]
[1643995520700,0.40071524,40313.0,40308.0,0.337481]
[1643995520904,0.40071524,40313.0,40308.0,4.95019163]
[1643995521502,0.40071524,40313.0,40309.0,0.337481]
[1643995521701,0.40071524,40313.0,40310.0,0.05]
[1643995522345,0.280754,40312.0,40310.0,0.05]
[1643995522545,0.40071524,40313.0,40302.0,0.05]
[1643995522745,0.40105445,40313.0,40302.0,5.22124597]
[1643995522945,0.40071524,40313.0,40304.0,0.062024]
[1643995523144,0.40071524,40313.0,40305.0,0.337481]
[1643995523351,0.00033921,40314.0,40309.0,0.05]
[1643995523552,0.02002195,40316.0,40309.0,0.05]
[1643995523553,0.00033921,40315.0,40309.0,0.05]
[1643995523746,0.13446968,40316.0,40309.0,0.05]
[1643995523946,0.00033921,40315.0,40313.0,0.05]
[1643995524147,0.02002195,40316.0,40314.0,0.26658499]
[1643995524347,0.02002195,40316.0,40315.0,0.337481]
[1643995524547,0.02002195,40316.0,40315.0,5.2097415]
[1643995524747,0.02002195,40316.0,40315.0,5.2597415]
[1643995525151,0.00033921,40318.0,40315.0,4.9222605]
[1643995525351,0.01,40319.0,40315.0,4.9222605]
[1643995526400,0.005,40319.0,40315.0,4.9222605]
[1643995527299,0.005,40319.0,40318.0,0.05]
[1643995527501,0.48064037,40323.0,40318.0,0.05]
[1643995527801,0.48064037,40323.0,40319.0,0.27167453]
[1643995527802,0.42,40323.0,40319.0,0.27167453]
[1643995528001,0.42,40323.0,40321.0,0.05]
[1643995528400,0.42,40323.0,40316.0,0.361117]
[1643995528707,0.05,40337.0,40325.0,0.3386652]
[1643995528900,0.2368,40336.0,40325.0,0.3386652]
[1643995529100,0.11200653,40337.0,40325.0,0.3386652]
[1643995529301,0.02058984,40334.0,40325.0,0.3386652]
[1643995529548,0.34551908,40333.0,40325.0,0.3386652]
[1643995529748,0.05,40332.0,40320.0,0.31930587]
[1643995529950,0.05,40332.0,40321.0,0.05]
[1643995530149,0.37076081,40331.0,40318.0,0.05]
[1643995530351,0.1,40331.0,40319.0,0.27800089]
[1643995530549,0.1,40331.0,40319.0,0.05]
[1643995530749,0.1,40331.0,40319.0,0.1]
[1643995530949,0.46439248,40325.0,40319.0,0.1]
[1643995531150,0.05,40324.0,40319.0,0.05]
[1643995531357,0.05,40324.0,40321.0,0.05]
[1643995531550,0.1497,40333.0,40321.0,0.05]
[1643995531751,0.1497,40333.0,40321.0,5.09115164]
[1643995531952,0.0497,40333.0,40321.0,5.04115164]
[1643995532155,0.45626711,40326.0,40321.0,5.04115164]
[1643995532354,0.0497,40325.0,40321.0,5.04115164]
[1643995532753,0.0497,40325.0,40321.0,4.99115164]
[1643995532957,0.04936679,40325.0,40322.0,4.65831895]
[1643995533205,0.062025,40324.0,40323.0,4.65831895]
[1643995533795,0.0497,40325.0,40323.0,4.65831895]
[1643995533999,0.0497,40325.0,40324.0,4.65831895]
[1643995534396,0.42,40326.0,40315.0,0.1]
[1643995534597,0.42,40326.0,40316.0,0.28207861]
[1643995534798,0.42,40326.0,40316.0,0.33207861]
[1643995535399,0.8317794,40326.0,40316.0,0.33207861]
[1643995535601,0.42,40326.0,40319.0,0.05]
[1643995535798,0.42,40326.0,40316.0,0.33207861]
[1643995536199,0.42,40326.0,40316.0,0.39409461]
[1643995536400,0.42,40326.0,40316.0,5.1165841]
[1643995536603,0.85081901,40326.0,40316.0,5.1165841]
[1643995536801,0.85081901,40326.0,40316.0,4.83450549]
[1643995537245,0.85081901,40326.0,40317.0,0.28303109]
[1643995537447,0.85081901,40326.0,40317.0,5.00552058]
[1643995537645,0.85081901,40326.0,40319.0,0.46174023]
[1643995537847,0.42,40326.0,40322.0,0.05]
[1643995538446,0.42,40326.0,40323.0,0.05]
[1643995538746,0.42,40326.0,40323.0,4.9015065]
[1643995539347,0.42,40326.0,40324.0,4.9015065]
[1643995539550,0.42,40326.0,40320.0,0.1]
[1643995539749,0.42,40326.0,40321.0,4.9015065]
[1643995540554,0.08649324,40319.0,40311.0,7e-05]
[1643995540805,0.062045,40316.0,40311.0,7e-05]
[1643995541005,0.41907129,40314.0,40311.0,7e-05]
[1643995541205,0.0497,40313.0,40311.0,7e-05]
[1643995541403,1.730754,40312.0,40311.0,7e-05]
[1643995541602,0.330454,40312.0,40311.0,7e-05]
[1643995541806,0.480454,40312.0,40311.0,7e-05]
[1643995543204,0.430754,40312.0,40311.0,7e-05]
[1643995543404,0.380454,40312.0,40311.0,7e-05]
[1643995544005,0.0003392,40315.0,40311.0,7e-05]
[1643995544205,0.0500392,40317.0,40311.0,7e-05]
[1643995544448,0.12087371,40316.0,40311.0,7e-05]
[1643995544647,0.0497,40315.0,40311.0,7e-05]
[1643995545048,0.0500392,40315.0,40311.0,7e-05]
[1643995545249,0.0500392,40315.0,40314.0,0.05]
[1643995545449,0.0003392,40316.0,40311.0,0.10007]
[1643995545648,0.0003392,40319.0,40311.0,7e-05]
[1643995545847,0.0497,40321.0,40311.0,7e-05]
[1643995545848,0.0003392,40320.0,40311.0,7e-05]
[1643995546047,0.0497,40321.0,40311.0,7e-05]
[1643995546048,0.13363439,40318.0,40311.0,7e-05]
[1643995546248,0.52870739,40318.0,40311.0,7e-05]
[1643995546652,0.395073,40318.0,40311.0,7e-05]
[1643995548202,0.0003392,40321.0,40311.0,0.10007]
[1643995548395,0.0003392,40319.0,40311.0,7e-05]
[1643995548595,0.0003392,40321.0,40311.0,0.43407432]
[1643995548795,0.0003392,40321.0,40318.0,0.05]
[1643995549197,0.1003392,40325.0,40319.0,0.35532374]
[1643995549400,1.23086391,40329.0,40319.0,0.35032374]
[1643995549401,0.0003392,40324.0,40319.0,0.35032374]
[1643995549600,0.0003392,40326.0,40319.0,0.40032374]
[1643995549795,0.0003392,40328.0,40324.0,0.05]
[1643995549998,0.85864776,40329.0,40324.0,0.05]
[1643995550198,0.0003392,40328.0,40324.0,0.05]
[1643995550396,0.85864776,40329.0,40324.0,0.05]
[1643995550597,0.0003392,40328.0,40324.0,0.05]
[1643995550997,0.0003392,40328.0,40318.0,0.5092301]
[1643995551198,0.0003392,40328.0,40322.0,0.186051]
[1643995551199,0.062014,40328.0,40322.0,0.186051]
[1643995551397,0.0623532,40328.0,40325.0,0.05]
[1643995551599,0.062014,40328.0,40325.0,0.05]
[1643995552260,0.062014,40328.0,40322.0,0.186051]
[1643995552456,0.31952055,40325.0,40322.0,0.186051]
[1643995552656,0.31952055,40326.0,40324.0,0.124029]
[1643995553258,0.31985975,40327.0,40324.0,0.124029]
[1643995553457,0.31985975,40328.0,40326.0,0.05]
[1643995553657,0.31952055,40328.0,40327.0,0.05]
[1643995553857,0.31985975,40328.0,40327.0,0.05]
[1643995554058,0.31952055,40328.0,40325.0,0.05]
[1643995554256,0.31985975,40328.0,40324.0,0.124029]
[1643995554457,0.31985975,40328.0,40327.0,0.1]
[1643995554658,0.42,40329.0,40327.0,0.1]
[1643995554861,0.37255535,40333.0,40328.0,0.05]
[1643995555058,0.0003392,40332.0,40331.0,0.05]
[1643995555257,0.23814577,40333.0,40327.0,0.186002]
[1643995555457,0.0003392,40332.0,40327.0,0.186002]
[1643995555703,0.30015277,40333.0,40328.0,0.062002]
[1643995555899,0.47058198,40331.0,40330.0,0.186008]
[1643995556301,0.67198981,40331.0,40330.0,0.186008]
[1643995556502,0.67198981,40331.0,40330.0,0.14988329]
[1643995557505,0.72317412,40331.0,40330.0,0.11008967]
[1643995558301,0.72317412,40331.0,40328.0,0.062002]
[1643995558500,0.10289214,40330.0,40328.0,0.062002]
[1643995558700,0.42245748,40329.0,40328.0,0.062002]
[1643995558900,0.52245748,40329.0,40328.0,0.062002]
[1643995559952,0.94245748,40329.0,40328.0,0.062002]
[1643995560157,0.5697,40329.0,40328.0,0.062002]
[1643995560753,0.1,40329.0,40328.0,0.062002]
[1643995561154,0.99092118,40331.0,40328.0,0.062002]
[1643995561454,0.52,40331.0,40328.0,0.062002]
[1643995562555,0.39989526,40329.0,40328.0,0.062002]
[1643995562956,0.39989526,40329.0,40326.0,0.186039]
[1643995562957,1.01841566,40329.0,40326.0,0.186039]
[1643995563200,0.27435174,40318.0,40316.0,0.01988059]
[1643995563398,0.76084519,40318.0,40316.0,0.01988059]
[1643995563599,0.80704909,40318.0,40316.0,0.01988059]
[1643995563896,1.32082753,40318.0,40316.0,0.01988059]
[1643995564897,1.32082753,40318.0,40316.0,0.08191559]
[1643995565299,1.32082753,40318.0,40316.0,0.062035]
[1643995566097,1.64033529,40318.0,40316.0,0.062035]
[1643995566946,1.32082753,40318.0,40316.0,0.062035]
[1643995567348,1.64033529,40318.0,40316.0,0.062035]
[1643995568850,1.32082753,40318.0,40316.0,0.062035]
[1643995569049,1.29312596,40318.0,40316.0,0.062035]
[1643995569248,0.99936664,40318.0,40316.0,0.062035]
[1643995569448,0.89936664,40318.0,40316.0,0.062035]
[1643995569649,0.76636929,40318.0,40316.0,0.062035]
[1643995570703,0.89399536,40318.0,40316.0,0.062035]
[1643995570897,0.99399536,40318.0,40316.0,0.062035]
[1643995572398,0.88260567,40318.0,40316.0,0.062035]
[1643995572602,0.37277028,40322.0,40316.0,0.062035]
[1643995572603,0.31950776,40323.0,40317.0,0.05029764]
[1643995572803,0.31950776,40325.0,40322.0,0.05]
[1643995573399,0.31950776,40324.0,40322.0,0.05]
[1643995573599,0.40696946,40323.0,40322.0,0.05]
[1643995573799,0.4716901,40324.0,40322.0,0.05]
[1643995573800,0.31950776,40324.0,40322.0,0.05]
[1643995574002,0.062019,40325.0,40322.0,0.05]
[1643995574203,0.0003392,40325.0,40322.0,0.05]
[1643995574456,0.0003392,40327.0,40326.0,0.05]
[1643995574654,0.01810355,40330.0,40328.0,0.05]
[1643995574852,0.01810355,40330.0,40329.0,0.15]
[1643995575254,0.00034049,40333.0,40329.0,0.15]
[1643995575453,0.31984825,40334.0,40332.0,0.05]
[1643995575657,0.31950776,40334.0,40332.0,0.05]
[1643995576753,0.31950776,40334.0,40331.0,0.062003]
[1643995577154,0.19981211,40335.0,40331.0,0.062003]
[1643995577155,0.42055045,40332.0,40331.0,0.062003]
[1643995578205,0.00034049,40334.0,40331.0,0.162003]
[1643995578396,0.2001526,40335.0,40331.0,0.162003]
[1643995578595,0.55830967,40335.0,40331.0,0.162003]
[1643995578795,0.3001526,40335.0,40334.0,0.05]
[1643995578996,0.162006,40335.0,40334.0,0.05]
[1643995579397,0.062006,40335.0,40334.0,0.05]
[1643995579999,0.81058049,40337.0,40334.0,0.05]
[1643995580202,0.42872924,40337.0,40334.0,0.212001]
[1643995580500,0.42872924,40337.0,40334.0,0.112001]
[1643995580703,0.42872924,40337.0,40334.0,0.212001]
[1643995580902,0.29115764,40336.0,40334.0,0.212001]
[1643995581945,0.58827472,40336.0,40334.0,0.112001]
[1643995582145,0.72619227,40336.0,40334.0,0.112001]
[1643995582346,0.82619227,40336.0,40334.0,0.112001]
[1643995582748,0.29233176,40335.0,40334.0,0.112001]
[1643995582947,0.29233176,40335.0,40334.0,0.05]
[1643995583146,0.59108119,40336.0,40334.0,0.05]
[1643995583351,0.45316364,40336.0,40334.0,0.05]
[1643995584548,0.35316364,40336.0,40335.0,0.05]
[1643995584748,0.45316364,40336.0,40335.0,0.05]
[1643995585148,0.45316364,40336.0,40333.0,0.124001]
[1643995585547,0.13454635,40335.0,40333.0,0.124001]
[1643995585796,0.13454635,40335.0,40334.0,0.05]
[1643995587195,0.13454635,40335.0,40333.0,0.124001]
[1643995587697,0.45350413,40336.0,40334.0,0.05]
[1643995587898,0.45316364,40336.0,40335.0,0.05]
[1643995588097,0.75864972,40336.0,40335.0,0.05]
[1643995588697,0.90941003,40336.0,40335.0,0.05]
[1643995589298,0.60392395,40336.0,40335.0,0.05]
[1643995589551,0.44191795,40336.0,40335.0,0.05]
[1643995589849,0.29115764,40336.0,40335.0,0.05]
[1643995590849,0.50607696,40336.0,40335.0,0.05]
[1643995591248,0.60607696,40336.0,40335.0,0.05]
[1643995592249,0.54407296,40336.0,40335.0,0.05]
[1643995592450,0.39115764,40336.0,40335.0,0.05]
[1643995592649,0.42872924,40337.0,40335.0,0.05]
[1643995593495,0.57619542,40337.0,40335.0,0.05]
[1643995593703,0.86235329,40337.0,40335.0,0.05]
[1643995594297,0.00034049,40338.0,40335.0,0.15]
[1643995594496,0.124002,40339.0,40335.0,0.15]
[1643995594497,0.06234049,40339.0,40335.0,0.15]
[1643995594698,0.00034049,40339.0,40338.0,0.15]
[1643995594896,0.061993,40341.0,40338.0,0.15]
[1643995594897,0.06233349,40341.0,40338.0,0.15]
[1643995595097,0.061993,40341.0,40338.0,0.15]
[1643995595298,0.42290732,40340.0,40339.0,0.1]
[1643995595499,0.72920919,40340.0,40339.0,0.1]
[1643995595697,0.061993,40341.0,40339.0,0.1]
[1643995595899,0.061993,40341.0,40339.0,0.16192899]
[1643995596097,0.061993,40341.0,40340.0,0.04993299]
[1643995596951,0.00034049,40343.0,40342.0,0.05]
[1643995597155,0.001,40347.0,40344.0,0.05]
[1643995597350,0.011,40349.0,40347.0,0.05]
[1643995597554,0.001,40356.0,40347.0,0.05]
[1643995597750,0.001,40356.0,40354.0,0.14993299]
[1643995597950,0.001,40356.0,40354.0,0.19986598]
[1643995598352,0.37477028,40360.0,40355.0,0.6]
[1643995598553,0.001,40362.0,40358.0,0.14986598]
[1643995598753,0.001,40362.0,40361.0,0.14986598]
[1643995599353,0.001,40362.0,40361.0,0.57770892]
[1643995599552,0.001,40362.0,40361.0,0.04993299]
[1643995599752,0.001,40362.0,40355.0,0.84863299]
[1643995599753,0.00499329,40360.0,40358.0,0.061962]
[1643995599954,0.14972154,40362.0,40358.0,0.061962]
[1643995600554,0.0497,40361.0,40358.0,0.061962]
[1643995601222,0.32899801,40360.0,40358.0,0.111962]
[1643995601423,0.42899801,40360.0,40358.0,0.05]
[1643995601626,0.42399801,40360.0,40358.0,0.05]
[1643995601825,0.42399801,40360.0,40357.0,0.123923]
[1643995602025,0.72046491,40360.0,40357.0,0.123923]
[1643995602225,0.42399801,40360.0,40357.0,0.123923]
[1643995603227,0.42399801,40360.0,40358.0,0.05]
[1643995603429,0.42399801,40360.0,40357.0,0.123923]
[1643995603629,0.33235673,40352.0,40350.0,7e-05]
[1643995603830,1.87190908,40351.0,40350.0,7e-05]
[1643995604029,0.27036159,40351.0,40350.0,7e-05]
[1643995604232,0.30837059,40351.0,40350.0,7e-05]
[1643995604455,0.71011293,40351.0,40350.0,7e-05]
[1643995604656,0.1497,40351.0,40350.0,7e-05]
[1643995604857,0.061992,40352.0,40350.0,0.14993598]
[1643995605055,0.06198348,40356.0,40350.0,0.05000299]
[1643995605459,0.06198348,40356.0,40350.0,7e-05]
[1643995605857,0.1393175,40355.0,40350.0,7e-05]
[1643995606059,0.0497,40354.0,40350.0,7e-05]
[1643995606259,0.173673,40354.0,40350.0,7e-05]
[1643995606658,0.9343542,40351.0,40350.0,7e-05]
[1643995606861,1.0840542,40351.0,40350.0,7e-05]
[1643995607060,0.4840542,40351.0,40350.0,7e-05]
[1643995607458,0.1497,40351.0,40350.0,7e-05]
[1643995608058,0.0497,40351.0,40350.0,7e-05]
[1643995610804,1.6497,40351.0,40350.0,1e-05]
[1643995611005,0.0497,40351.0,40350.0,1e-05]
[1643995611204,0.1497,40351.0,40350.0,1e-05]
[1643995611406,0.11430366,40347.0,40346.0,0.173973]
[1643995611604,0.0497,40347.0,40346.0,0.173973]
[1643995612254,0.0497,40347.0,40346.0,0.123973]
[1643995612857,0.06199825,40346.0,40340.0,0.123989]
[1643995613058,0.06199825,40346.0,40339.0,0.04993299]
[1643995613059,0.745615,40344.0,40339.0,0.04993299]
[1643995613254,0.14027548,40340.0,40339.0,0.04993299]
[1643995613455,0.18997548,40340.0,40339.0,0.04993299]
[1643995614056,0.60697786,40340.0,40339.0,0.04993299]
[1643995614256,0.0497,40340.0,40339.0,0.04993299]
[1643995615255,0.0497,40340.0,40339.0,0.14986598]
[1643995615456,0.0497,40340.0,40339.0,0.04993299]
[1643995616498,0.02128501,40340.0,40339.0,0.04993299]
[1643995618601,0.08329601,40340.0,40339.0,0.04993299]
[1643995620248,0.14530679,40340.0,40339.0,0.04993299]
[1643995620747,0.02320423,40340.0,40339.0,0.09993299]
[1643995621150,0.02320423,40340.0,40339.0,0.04993299]
[1643995621349,0.06201,40341.0,40339.0,0.04993299]
[1643995621549,0.0497,40340.0,40339.0,0.14986598]
[1643995621749,0.0497,40340.0,40339.0,0.32385398]
[1643995622554,0.62679936,40359.0,40339.0,0.61600592]
[1643995622555,0.00034249,40347.0,40339.0,0.61600592]
[1643995622752,0.04784249,40350.0,40346.0,0.27384098]
[1643995622951,0.04818501,40350.0,40349.0,0.04993299]
[1643995623209,0.04784249,40350.0,40349.0,0.04993299]
[1643995624203,0.04784249,40350.0,40347.0,0.061988]
[1643995624603,0.18906808,40350.0,40347.0,0.061988]
[1643995625209,0.04784249,40350.0,40347.0,0.061988]
[1643995625405,0.48416477,40351.0,40349.0,0.04993299]
[1643995625406,0.1,40351.0,40349.0,0.04993299]
[1643995625805,0.07434622,40352.0,40350.0,0.04993299]
[1643995626004,0.07434622,40352.0,40350.0,0.11191599]
[1643995626409,0.13414851,40357.0,40353.0,0.15]
[1643995627870,0.001,40362.0,40361.0,0.57217749]
[1643995630269,0.001,40362.0,40361.0,0.72217749]
[1643995630719,0.001,40362.0,40361.0,1.05967649]
[1643995631115,0.00134383,40364.0,40362.0,1.385827]
[1643995631314,0.001,40364.0,40363.0,0.537499]
[1643995631517,0.174073,40374.0,40363.0,0.537499]
[1643995631518,0.174073,40374.0,40371.0,0.15]
[1643995631717,0.174073,40374.0,40371.0,0.63743199]
[1643995631916,0.174073,40374.0,40371.0,0.68736498]
[1643995632117,0.174073,40374.0,40371.0,0.34986598]
[1643995632522,0.174073,40374.0,40371.0,1.12677375]
[1643995632716,0.174073,40374.0,40371.0,0.78927475]
[1643995633317,0.174073,40374.0,40371.0,1.12677375]
[1643995633518,0.001,40378.0,40374.0,0.15]
[1643995633718,0.002,40379.0,40377.0,0.211921]
[1643995633919,0.003,40380.0,40378.0,0.48736498]
[1643995634118,0.003,40380.0,40378.0,0.19986598]
[1643995634319,0.003,40380.0,40378.0,0.62502396]
[1643995634569,0.002,40382.0,40378.0,0.62502396]
[1643995634769,0.002,40382.0,40381.0,0.14986598]
[1643995637172,0.002,40382.0,40381.0,0.04993299]
[1643995638615,0.002,40382.0,40377.0,0.061921]
[1643995638817,0.55359432,40381.0,40372.0,0.7253]
[1643995639016,0.60359432,40381.0,40372.0,0.7253]
[1643995639217,0.27565958,40374.0,40372.0,0.787247]
[1643995639418,0.27565958,40374.0,40369.0,0.123893]
[1643995639419,0.0497,40373.0,40369.0,0.123893]
[1643995639618,0.0497,40373.0,40371.0,0.34717265]
[1643995639818,0.06196227,40372.0,40367.0,7e-05]
[1643995640020,0.173628,40371.0,40367.0,7e-05]
[1643995640817,0.173628,40371.0,40368.0,0.43251146]
[1643995641618,0.173628,40371.0,40367.0,7e-05]
[1643995641619,0.593628,40371.0,40367.0,7e-05]
[1643995641819,0.693628,40371.0,40367.0,7e-05]
[1643995642582,0.693628,40371.0,40369.0,0.41239503]
[1643995642787,0.411959,40370.0,40369.0,0.41239503]
[1643995642985,0.411959,40370.0,40369.0,0.04993299]
[1643995642986,1.2497,40370.0,40369.0,0.04993299]
[1643995643185,0.1497,40370.0,40367.0,7e-05]
[1643995643593,0.38399261,40360.0,40352.0,0.04993299]
[1643995643788,0.38399261,40360.0,40357.0,0.04993299]
[1643995643789,0.0497,40359.0,40357.0,0.04993299]
[1643995643988,0.111675,40359.0,40358.0,0.38767007]
[1643995644390,0.1088348,40359.0,40358.0,0.38767007]
[1643995644989,0.1088348,40359.0,40357.0,0.09993299]
[1643995645389,0.0497,40359.0,40357.0,0.09993299]
[1643995645815,0.0497,40359.0,40358.0,0.05]
[1643995646219,0.0497,40359.0,40357.0,0.24993299]
[1643995646415,0.0497,40359.0,40357.0,0.09993299]
[1643995646615,0.0497,40359.0,40357.0,0.05]
[1643995646816,0.0497,40359.0,40353.0,0.123942]
[1643995646817,0.35120428,40358.0,40353.0,0.123942]
[1643995647116,0.0497,40357.0,40353.0,0.123942]
[1643995647516,0.05004383,40357.0,40353.0,0.123942]
[1643995647917,0.15872034,40355.0,40353.0,0.123942]
[1643995648116,0.0497,40354.0,40353.0,0.173942]
[1643995649965,0.0497,40354.0,40353.0,0.123942]
[1643995651370,0.0497,40354.0,40353.0,0.173942]
[1643995652572,0.39068767,40358.0,40353.0,0.173942]
[1643995652773,0.0497,40357.0,40356.0,0.04993299]
[1643995653071,0.0497,40357.0,40356.0,0.19986598]
[1643995653511,0.0497,40357.0,40356.0,0.09993299]
[1643995653713,0.14061759,40364.0,40356.0,0.09993299]
[1643995653714,0.00034385,40359.0,40356.0,0.09993299]
[1643995653915,0.56320787,40363.0,40356.0,0.04993299]
[1643995654113,0.00034385,40362.0,40356.0,0.04993299]
[1643995654311,0.62517487,40363.0,40356.0,0.04993299]
[1643995654611,0.28288941,40362.0,40356.0,0.09993299]
[1643995654811,0.00034385,40362.0,40356.0,0.09993299]
[1643995655013,0.13810745,40357.0,40355.0,0.061966]
[1643995655212,0.0497,40356.0,40353.0,0.123942]
[1643995655422,0.32828933,40356.0,40352.0,0.01969511]
[1643995655616,1.6,40353.0,40351.0,0.00012549]
[1643995655813,1.6497,40352.0,40351.0,0.00012549]
[1643995656015,1.6997,40352.0,40351.0,0.00012549]
[1643995656311,2.07796762,40352.0,40351.0,5.49e-06]
[1643995656517,2.07796762,40352.0,40338.0,0.83083299]
[1643995656518,2.58572004,40352.0,40338.0,0.83083299]
[1643995656713,2.58572004,40352.0,40338.0,0.83095848]
[1643995656714,0.8972139,40351.0,40338.0,0.83095848]
[1643995656968,0.0997,40350.0,40338.0,0.83095848]
[1643995657165,0.12401464,40349.0,40338.0,0.83095848]
[1643995657365,0.40450399,40339.0,40338.0,0.83095848]
[1643995657565,0.45420399,40339.0,40338.0,0.05005848]
[1643995657767,0.55420399,40339.0,40338.0,0.05005848]
[1643995658166,0.54920399,40339.0,40338.0,0.05005848]
[1643995658365,0.1497,40339.0,40338.0,0.05005848]
[1643995658766,0.0497,40339.0,40338.0,0.05005848]
[1643995658966,0.0497,40339.0,40338.0,0.10005848]
[1643995659871,0.061995,40343.0,40338.0,0.19999147]
[1643995660072,0.0497,40343.0,40342.0,0.14986598]
[1643995660270,0.0497,40343.0,40342.0,0.14999147]
[1643995660468,0.0497,40343.0,40342.0,0.19999147]
[1643995660917,0.061987,40347.0,40342.0,0.19999147]
[1643995661321,0.061987,40347.0,40342.0,0.05012549]
[1643995661722,0.0497,40346.0,40342.0,0.00012549]
[1643995661918,0.0497,40346.0,40342.0,0.05005848]
[1643995662218,0.04977,40346.0,40342.0,0.05005848]
[1643995662417,0.04977,40346.0,40344.0,0.09993299]
[1643995662618,0.04977,40346.0,40344.0,0.10005848]
[1643995662818,0.04977,40346.0,40344.0,0.05012549]
[1643995663019,0.04977,40346.0,40344.0,0.00012549]
[1643995663217,0.04977,40346.0,40345.0,0.04993299]
[1643995663418,0.04977,40346.0,40345.0,0.05005848]
[1643995663818,0.04977,40346.0,40345.0,0.00012549]
[1643995666466,0.20882445,40346.0,40345.0,0.00012549]
[1643995666667,0.53966877,40346.0,40345.0,0.00012549]
[1643995666871,0.92010394,40346.0,40345.0,0.00012549]
[1643995667070,0.63925962,40346.0,40345.0,0.00012549]
[1643995667476,1.91282236,40346.0,40332.0,0.02093883]
[1643995667676,0.05,40333.0,40332.0,0.02093883]
[1643995667869,0.05,40333.0,40332.0,8.83e-06]
[1643995667870,3.59486274,40333.0,40332.0,8.83e-06]
[1643995668069,0.44499014,40322.0,40317.0,0.00139764]
[1643995668328,0.51806891,40322.0,40317.0,0.00139764]
[1643995668628,0.93511083,40322.0,40317.0,0.00139764]
[1643995669228,0.58010891,40322.0,40318.0,0.43299354]
[1643995670425,0.58010891,40322.0,40317.0,0.00139764]
[1643995671525,0.58010891,40322.0,40317.0,0.3330305]
[1643995671725,0.58010891,40322.0,40317.0,0.3830305]
[1643995672172,0.58010891,40322.0,40317.0,0.05139764]
[1643995672469,0.85286404,40322.0,40321.0,0.005]
[1643995672668,0.57909491,40322.0,40321.0,0.005]
[1643995673471,0.85213516,40322.0,40321.0,0.005]
[1643995673670,0.57909491,40322.0,40321.0,0.005]
[1643995674675,0.85518895,40322.0,40321.0,0.005]
[1643995675469,0.57909491,40322.0,40321.0,0.005]
[1643995676116,0.85228444,40322.0,40321.0,0.005]
[1643995676313,0.57909491,40322.0,40321.0,0.005]
[1643995676715,0.85837114,40322.0,40321.0,0.005]
[1643995677115,0.851621,40322.0,40321.0,0.005]
[1643995678215,0.52939491,40322.0,40321.0,0.005]
[1643995678816,0.80059125,40322.0,40321.0,0.005]
[1643995679768,0.52939491,40322.0,40321.0,0.005]
[1643995679971,0.57509491,40322.0,40321.0,0.005]
[1643995680169,0.84713178,40322.0,40321.0,0.005]
[1643995681371,0.57509491,40322.0,40321.0,0.005]
[1643995681571,0.10774,40322.0,40321.0,0.005]
[1643995681770,0.062046,40324.0,40321.0,0.27592578]
[1643995681971,0.062023,40326.0,40323.0,0.14986598]
[1643995682169,0.16071727,40329.0,40325.0,0.09993299]
[1643995682368,0.16071727,40329.0,40325.0,0.14993299]
[1643995682572,0.34880831,40326.0,40325.0,0.14993299]
[1643995682769,0.39118659,40326.0,40325.0,0.19986598]
[1643995682968,0.53377856,40329.0,40325.0,0.19986598]
[1643995683235,0.53377856,40329.0,40328.0,0.04993299]
[1643995683236,0.28476269,40329.0,40328.0,0.04993299]
[1643995683630,0.22273727,40329.0,40328.0,0.04993299]
[1643995684228,0.27273727,40329.0,40328.0,0.04993299]
[1643995685131,0.22273727,40329.0,40328.0,0.14986598]
[1643995686128,0.16071727,40329.0,40328.0,0.14986598]
[1643995686328,0.062018,40333.0,40328.0,0.34986598]
[1643995686528,0.41149128,40337.0,40332.0,0.14986598]
[1643995686729,0.28745528,40337.0,40336.0,0.04993299]
[1643995686965,0.28745528,40337.0,40336.0,0.0349464]
[1643995687969,0.10702905,40340.0,40336.0,0.0349464]
[1643995688169,0.17047116,40345.0,40339.0,0.1198928]
[1643995688370,0.06207288,40346.0,40344.0,0.0349464]
[1643995688371,7e-05,40346.0,40344.0,0.0349464]
[1643995688569,7e-05,40346.0,40344.0,0.03507189]
[1643995688867,0.6061864,40345.0,40344.0,0.03507189]
[1643995689070,0.6061864,40345.0,40344.0,0.00012549]
[1643995689071,0.94150196,40345.0,40344.0,0.00012549]
[1643995689371,1.04150196,40345.0,40344.0,0.00012549]
[1643995690473,0.78728711,40345.0,40344.0,0.12001829]
[1643995690726,0.33531556,40345.0,40344.0,0.12001829]
[1643995691319,0.33531556,40345.0,40344.0,0.08507189]
[1643995691519,0.33531556,40345.0,40344.0,0.12001829]
[1643995691820,0.33531556,40345.0,40344.0,0.00012549]
[1643995692020,0.061998,40345.0,40344.0,0.00012549]
[1643995692219,0.061998,40345.0,40344.0,5.705e-05]
[1643995693021,1.95220198,40345.0,40344.0,5.705e-05]
[1643995693224,0.35220198,40345.0,40344.0,5.705e-05]
[1643995693425,0.62265278,40345.0,40344.0,5.705e-05]
[1643995693622,0.45220198,40345.0,40344.0,5.705e-05]
[1643995694024,0.45220198,40345.0,40344.0,0.03500345]
[1643995694224,0.45220198,40345.0,40344.0,5.705e-05]
[1643995694478,0.14974374,40345.0,40344.0,5.705e-05]
[1643995694879,0.04974374,40345.0,40344.0,5.705e-05]
[1643995696985,0.35256008,40345.0,40344.0,5.705e-05]
[1643995697383,0.45256008,40345.0,40344.0,5.705e-05]
[1643995697989,0.14974374,40345.0,40344.0,0.03500345]
[1643995698423,0.04974374,40345.0,40344.0,0.03500345]
[1643995699122,0.32152812,40345.0,40344.0,0.03500345]
[1643995699323,0.31652812,40345.0,40344.0,0.03500345]
[1643995699721,0.31485032,40345.0,40344.0,0.03500345]
[1643995700325,0.30985032,40345.0,40344.0,0.03500345]
[1643995700528,0.40985032,40345.0,40344.0,0.03500345]
[1643995700926,0.13806594,40345.0,40344.0,0.03500345]
[1643995701726,0.03806594,40345.0,40344.0,0.03500345]
[1643995703369,0.03806594,40345.0,40344.0,0.11994985]